fUST/lending_fUST_20250916
["ID","MTS","AMOUNT","RATE_DAILY","PERIOD"]
[385741447,1757999442398,-480.0,0.00021917,2]
[385741448,1757999442407,-480.0,0.00021917,2]
[385741449,1757999442419,-480.0,0.00021917,2]
[385741450,1757999442428,-480.0,0.00021917,2]
[385741451,1757999442437,-151.0,0.00021917,2]
[385741452,1757999442446,-502.74,0.00021917,2]
[385741453,1757999442456,-482.84894603,0.00021917,2]
[385741454,1757999442465,-151.0,0.00021917,2]
[385741455,1757999442474,-202.442081,0.00021917,2]
[385741456,1757999442483,-480.0,0.00021917,2]
[385741457,1757999442493,-480.0,0.00021917,2]
[385741458,1757999442502,-481.61128168,0.00021917,2]
[385741459,1757999442511,-480.0,0.00021917,2]
[385741460,1757999442520,-480.0,0.00021917,2]
[385741461,1757999442529,-480.0,0.00021917,2]
[385741462,1757999442538,-480.0,0.00021917,2]
[385741463,1757999442547,-480.0,0.00021917,2]
[385741464,1757999442556,-482.2938915,0.00021917,2]
[385741465,1757999442565,-191.600975,0.00021917,2]
[385741466,1757999442574,-191.600975,0.00021917,2]
[385741467,1757999442583,-191.600975,0.00021917,2]
[385741468,1757999442593,-191.600975,0.00021917,2]
[385741469,1757999442602,-480.0,0.00021917,2]
[385741470,1757999442612,-482.22440863,0.00021917,2]
[385741471,1757999442622,-492.70515079,0.00021917,2]
[385741472,1757999442631,-483.1320794,0.00021917,2]
[385741473,1757999442641,-480.0,0.00021917,2]
[385741474,1757999442650,-465.41495787,0.00021917,2]
[385741475,1757999442660,-480.0,0.00021917,2]
[385741476,1757999442669,-482.63368206,0.00021917,2]
[385741478,1757999442678,-480.0,0.00021917,2]
[385741479,1757999442687,-480.0,0.00021917,2]
[385741480,1757999442697,-174.217381,0.00021917,2]
[385741481,1757999442706,-180.534982,0.00021917,2]
[385741482,1757999442715,-512.02354938,0.00021917,2]
[385741483,1757999442725,-174.217381,0.00021917,2]
[385741484,1757999442734,-174.217381,0.00021917,2]
[385741485,1757999442743,-480.0,0.00021917,2]
[385741486,1757999442753,-174.217381,0.00021917,2]
[385741487,1757999442762,-480.0,0.00021917,2]
[385741488,1757999442772,-578.42382827,0.00021917,2]
[385741489,1757999442781,-532.76158333,0.00021917,2]
[385741490,1757999442790,-480.0,0.00021917,2]
[385741491,1757999442799,-480.0,0.00021917,2]
[385741492,1757999442809,-500.0,0.00021917,2]
[385741493,1757999442818,-500.0,0.00021917,2]
[385741494,1757999442827,-428.53839059,0.00021917,2]
[385741495,1757999442835,-466.35324129,0.00021917,2]
[385741496,1757999442845,-480.0,0.00021917,2]
[385741497,1757999442854,-371.44676225,0.00021917,2]
[385741498,1757999442863,-480.0,0.00021917,2]
[385741499,1757999442872,-480.0,0.00021917,2]
[385741500,1757999442881,-480.0,0.00021917,2]
[385741501,1757999442891,-480.0,0.00021917,2]
[385741502,1757999442900,-480.0,0.00021917,2]
[385741503,1757999442909,-480.0,0.00021917,2]
[385741504,1757999442917,-480.0,0.00021917,2]
[385741505,1757999442926,-480.0,0.00021917,2]
[385741506,1757999442935,-480.0,0.00021917,2]
[385741507,1757999442944,-480.0,0.00021917,2]
[385741508,1757999443036,-480.0,0.00021917,2]
[385741509,1757999443047,-480.0,0.00021917,2]
[385741510,1757999443056,-480.0,0.00021917,2]
[385741511,1757999443066,-480.0,0.00021917,2]
[385741512,1757999443075,-480.0,0.00021917,2]
[385741513,1757999443084,-500.0,0.00021917,2]
[385741514,1757999443093,-480.0,0.00021917,2]
[385741515,1757999443102,-482.35042784,0.00021917,2]
[385741516,1757999443111,-480.0,0.00021917,2]
[385741517,1757999443121,-193.11695866,0.00021917,2]
[385741518,1757999443130,-151.0,0.00021917,2]
[385741519,1757999443139,-487.15,0.00021917,2]
[385741520,1757999443149,-151.0,0.00021917,2]
[385741521,1757999443158,-480.0,0.00021917,2]
[385741522,1757999443167,-480.0,0.00021917,2]
[385741523,1757999443177,-469.82005669,0.00021917,2]
[385741524,1757999443186,-480.0,0.00021917,2]
[385741525,1757999443195,-485.75558223,0.00021917,2]
[385741526,1757999443205,-480.0,0.00021917,2]
[385741527,1757999443214,-487.45238174,0.00021917,2]
[385741528,1757999443223,-529.77,0.00021917,2]
[385741529,1757999443232,-480.0,0.00021917,2]
[385741530,1757999443242,-480.0,0.00021917,2]
[385741531,1757999443252,-151.0,0.00021917,2]
[385741532,1757999443261,-480.0,0.00021917,2]
[385741533,1757999443270,-485.4358921,0.00021917,2]
[385741534,1757999443279,-480.0,0.00021917,2]
[385741535,1757999443289,-480.0,0.00021917,2]
[385741536,1757999443298,-480.0,0.00021917,2]
[385741537,1757999443308,-480.0,0.00021917,2]
[385741538,1757999443317,-584.37024212,0.00021917,2]
[385741539,1757999443326,-480.0,0.00021917,2]
[385741540,1757999443335,-480.0,0.00021917,2]
[385741541,1757999443344,-500.0,0.00021917,2]
[385741542,1757999443353,-500.0,0.00021917,2]
[385741543,1757999443363,-500.0,0.00021917,2]
[385741544,1757999443372,-500.0,0.00021917,2]
[385741545,1757999443381,-500.0,0.00021917,2]
[385741546,1757999443390,-500.0,0.00021917,2]
[385741547,1757999443399,-500.0,0.00021917,2]
[385741548,1757999443407,-500.0,0.00021917,2]
[385741549,1757999443420,-522.86105062,0.00021917,2]
[385741550,1757999443429,-3859.97,0.00021917,2]
[385741551,1757999443438,-480.0,0.00021917,2]
[385741552,1757999443447,-480.0,0.00021917,2]
[385741553,1757999443457,-484.15126909,0.00021917,2]
[385741554,1757999443466,-483.72614278,0.00021917,2]
[385741555,1757999443475,-480.0,0.00021917,2]
[385741556,1757999443483,-482.98219597,0.00021917,2]
[385741557,1757999443495,-486.57532228,0.00021917,2]
[385741558,1757999443504,-474.22941731,0.00021917,2]
[385741559,1757999443513,-480.0,0.00021917,2]
[385741560,1757999443522,-480.0,0.00021917,2]
[385741561,1757999443531,-465.59263825,0.00021917,2]
[385741562,1757999443540,-385.03105187,0.00021917,2]
[385741563,1757999443550,-467.09798883,0.00021917,2]
[385741564,1757999443560,-480.0,0.00021917,2]
[385741565,1757999443569,-439.9465183,0.00021917,2]
[385741566,1757999443579,-481.4,0.00021917,2]
[385741567,1757999443588,-480.0,0.00021917,2]
[385741568,1757999443598,-480.0,0.00021917,2]
[385741569,1757999443607,-175.768189,0.00021917,2]
[385741570,1757999443616,-480.0,0.00021917,2]
[385741571,1757999443625,-480.0,0.00021917,2]
[385741572,1757999443634,-480.0,0.00021917,2]
[385741573,1757999443643,-480.0,0.00021917,2]
[385741574,1757999443652,-488.54173839,0.00021917,2]
[385741575,1757999443661,-480.0,0.00021917,2]
[385741576,1757999443670,-489.40077961,0.00021917,2]
[385741577,1757999443679,-500.0,0.00021917,2]
[385741578,1757999443688,-500.0,0.00021917,2]
[385741579,1757999443697,-500.0,0.00021917,2]
[385741580,1757999443706,-169.75627393,0.00021917,2]
[385741581,1757999443715,-500.0,0.00021917,2]
[385741582,1757999443724,-500.0,0.00021917,2]
[385741583,1757999443734,-288.60303952,0.00021917,2]
[385741584,1757999443743,-480.0,0.00021917,2]
[385741585,1757999443752,-1411.58,0.00021917,2]
[385741586,1757999443762,-480.0,0.00021917,2]
[385741587,1757999443771,-494.87741621,0.00021917,2]
[385741588,1757999443780,-480.0,0.00021917,2]
[385741589,1757999443789,-480.0,0.00021917,2]
[385741590,1757999443798,-151.0,0.00021917,2]
[385741591,1757999443807,-151.0,0.00021917,2]
[385741592,1757999443816,-480.0,0.00021917,2]
[385741593,1757999443825,-151.0,0.00021917,2]
[385741594,1757999443834,-480.0,0.00021917,2]
[385741595,1757999443843,-151.0,0.00021917,2]
[385741596,1757999443852,-480.0,0.00021917,2]
[385741597,1757999443861,-480.0,0.00021917,2]
[385741598,1757999443871,-486.83389113,0.00021917,2]
[385741599,1757999443881,-480.0,0.00021917,2]
[385741600,1757999443890,-480.0,0.00021917,2]
[385741601,1757999443900,-480.0,0.00021917,2]
[385741602,1757999443909,-480.0,0.00021917,2]
[385741603,1757999443919,-486.7455634,0.00021917,2]
[385741604,1757999443928,-470.11623041,0.00021917,2]
[385741605,1757999443937,-480.0,0.00021917,2]
[385741606,1757999443948,-485.95709016,0.00021917,2]
[385741607,1757999443958,-482.61081769,0.00021917,2]
[385741608,1757999443967,-465.67267672,0.00021917,2]
[385741609,1757999443977,-488.05780485,0.00021917,2]
[385741610,1757999443986,-480.0,0.00021917,2]
[385741611,1757999443995,-480.0,0.00021917,2]
[385741612,1757999444005,-314.68369324,0.00021917,2]
[385741613,1757999444015,-480.0,0.00021917,2]
[385741614,1757999444024,-480.0,0.00021917,2]
[385741615,1757999444033,-589.37,0.00021917,2]
[385741616,1757999444043,-151.0,0.00021917,2]
[385741617,1757999444054,-468.23867986,0.00021917,2]
[385741618,1757999444063,-480.0,0.00021917,2]
[385741619,1757999444072,-480.0,0.00021917,2]
[385741620,1757999444081,-470.89037462,0.00021917,2]
[385741621,1757999444091,-469.25321351,0.00021917,2]
[385741622,1757999444101,-503.46878029,0.00021917,2]
[385741623,1757999444110,-480.0,0.00021917,2]
[385741624,1757999444120,-940.86,0.00021917,2]
[385741625,1757999444130,-151.0,0.00021917,2]
[385741626,1757999444139,-480.0,0.00021917,2]
[385741627,1757999444148,-480.0,0.00021917,2]
[385741628,1757999444157,-462.612862,0.00021917,2]
[385741629,1757999444166,-480.0,0.00021917,2]
[385741630,1757999444175,-837.88,0.00021917,2]
[385741631,1757999444184,-480.0,0.00021917,2]
[385741632,1757999444193,-468.77117198,0.00021917,2]
[385741633,1757999444203,-480.0,0.00021917,2]
[385741634,1757999444212,-480.0,0.00021917,2]
[385741635,1757999444221,-480.0,0.00021917,2]
[385741636,1757999444230,-467.70068758,0.00021917,2]
[385741637,1757999444239,-543.24401079,0.00021917,2]
[385741638,1757999444248,-449.208965,0.00021918,2]
[385741639,1757999444257,-449.208965,0.00021918,2]
[385741640,1757999444266,-449.208965,0.00021918,2]
[385741641,1757999444275,-449.208965,0.00021918,2]
[385741642,1757999444284,-378.23616508,0.00021973,2]
[385741643,1757999444293,-500.0,0.00021973,2]
[385741644,1757999444302,-502.65541346,0.00021973,2]
[385741645,1757999444311,-502.18986888,0.00021973,2]
[385741646,1757999444320,-500.68439844,0.00021973,2]
[385741647,1757999444330,-500.0,0.00021973,2]
[385741648,1757999444339,-500.0,0.00021973,2]
[385741649,1757999444348,-500.0,0.00021973,2]
[385741650,1757999444357,-500.0,0.00021973,2]
[385741651,1757999444366,-293.67466398,0.00021973,2]
[385741652,1757999444375,-500.0,0.00021973,2]
[385741653,1757999444384,-503.16502255,0.00021973,2]
[385741654,1757999444393,-501.51113363,0.00021973,2]
[385741655,1757999444403,-500.0,0.00021973,2]
[385741656,1757999444412,-500.0,0.00021973,2]
[385741657,1757999444421,-500.0,0.00021973,2]
[385741658,1757999444430,-500.0,0.00021973,2]
[385741659,1757999444440,-500.0,0.00021973,2]
[385741660,1757999444450,-501.72701477,0.00021973,2]
[385741661,1757999444460,-502.53041432,0.00021973,2]
[385741662,1757999444469,-625.4689956,0.00021973,2]
[385741663,1757999444478,-500.75195611,0.00021973,2]
[385741664,1757999444488,-500.0,0.00021973,2]
[385741665,1757999444497,-151.0,0.00021973,7]
[385741666,1757999444506,-151.0,0.00021973,7]
[385741667,1757999444517,-151.0,0.00021973,7]
[385741668,1757999444526,-151.0,0.00021973,7]
[385741669,1757999444535,-159.808153,0.00021973,7]
[385741670,1757999444544,-6667.26,0.00022,7]
[385741671,1757999444553,-813.69,0.00022,7]
[385741673,1757999444562,-920.47481441,0.00022044,2]
[385741674,1757999444571,-4761.80668839,0.00022056,2]
[385741676,1757999444580,-251.6631,0.00022056,7]
[385741677,1757999444589,-155.361001,0.00022056,7]
[385741678,1757999444598,-151.876733,0.00022056,7]
[385741679,1757999444607,-151.0,0.00022056,7]
[385741680,1757999444616,-151.0,0.00022056,7]
[385741681,1757999444625,-151.0,0.00022056,7]
[385741682,1757999444635,-189.895693,0.00022056,7]
[385741683,1757999444646,-156.148166,0.00022056,7]
[385741684,1757999444656,-151.0,0.00022056,7]
[385741685,1757999444666,-500.0,0.00022068,2]
[385741686,1757999444675,-500.0,0.00022068,2]
[385741687,1757999444685,-1500.0,0.00022068,2]
[385741688,1757999444694,-1500.0,0.00022068,2]
[385741689,1757999444705,-1500.0,0.00022068,2]
[385741690,1757999444714,-1500.0,0.00022068,2]
[385741691,1757999444723,-1500.0,0.00022068,2]
[385741692,1757999444732,-1000.0,0.00022068,2]
[385741693,1757999444742,-1500.0,0.00022068,2]
[385741694,1757999444751,-1611.72575167,0.00022068,2]
[385741695,1757999444762,-1510.05913368,0.00022068,2]
[385741696,1757999444771,-427.07863972,0.00022068,2]
[385741697,1757999444780,-160.0,0.0002211,2]
[385741698,1757999444790,-487.5523461,0.0002215,2]
[385741699,1757999444799,-500.0,0.00022169,2]
[385741700,1757999444809,-522.6342153,0.00022173,2]
[385741701,1757999444818,-500.41937072,0.00022173,2]
[385741702,1757999444828,-500.0,0.00022173,2]
[385741703,1757999444838,-500.0,0.00022173,2]
[385741704,1757999444847,-500.81658752,0.00022173,2]
[385741705,1757999444856,-500.0,0.00022173,2]
[385741706,1757999444865,-501.55296951,0.00022173,2]
[385741707,1757999444875,-500.0,0.00022173,2]
[385741708,1757999444885,-479.65918422,0.00022191,3]
[385741709,1757999444894,-490.52703112,0.00022191,3]
[385741710,1757999444903,-480.0,0.00022191,3]
[385741711,1757999444913,-438.8330069,0.00022191,3]
[385741712,1757999444922,-490.18470489,0.00022191,3]
[385741713,1757999444931,-480.0,0.00022191,3]
[385741714,1757999444940,-285.87527844,0.00022191,3]
[385741715,1757999444949,-502.19958278,0.00022191,3]
[385741716,1757999444958,-480.0,0.00022191,3]
[385741717,1757999444967,-441.81047894,0.00022191,3]
[385741718,1757999444976,-490.54059134,0.00022191,3]
[385741719,1757999444986,-248.7337536,0.00022191,3]
[385741720,1757999444995,-480.0,0.00022191,3]
[385741721,1757999445004,-482.78133184,0.00022191,3]
[385741722,1757999445014,-480.0,0.00022191,3]
[385741723,1757999445023,-471.87459895,0.00022191,3]
[385741724,1757999445032,-480.0,0.00022191,3]
[385741725,1757999445041,-448.88432873,0.00022191,3]
[385741726,1757999445051,-480.0,0.00022191,3]
[385741727,1757999445060,-260.57225346,0.00022191,3]
[385741728,1757999445069,-480.0,0.00022191,3]
[385741729,1757999445079,-480.0,0.00022191,3]
[385741730,1757999445088,-480.0,0.00022191,3]
[385741731,1757999445097,-480.0,0.00022191,3]
[385741732,1757999445106,-480.0,0.00022191,3]
[385741733,1757999445115,-480.0,0.00022191,3]
[385741734,1757999445126,-480.0,0.00022191,3]
[385741735,1757999445217,-480.0,0.00022191,3]
[385741736,1757999445227,-480.0,0.00022191,3]
[385741737,1757999445236,-480.0,0.00022191,3]
[385741738,1757999445246,-480.0,0.00022191,3]
[385741739,1757999445256,-480.0,0.00022191,3]
[385741740,1757999445265,-505.44926189,0.00022191,2]
[385741741,1757999445274,-480.0,0.00022191,3]
[385741742,1757999445283,-480.0,0.00022191,3]
[385741743,1757999445293,-480.0,0.00022191,3]
[385741744,1757999445302,-480.0,0.00022191,3]
[385741745,1757999445311,-480.0,0.00022191,3]
[385741746,1757999445320,-480.0,0.00022191,3]
[385741747,1757999445329,-480.0,0.00022191,3]
[385741748,1757999445339,-522.27112578,0.00022191,3]
[385741749,1757999445348,-480.0,0.00022191,3]
[385741750,1757999445357,-487.96307943,0.00022191,3]
[385741751,1757999445368,-480.0,0.00022191,3]
[385741752,1757999445377,-151.0,0.00022191,7]
[385741753,1757999445387,-204.700538,0.00022191,7]
[385741754,1757999445396,-151.0,0.00022191,7]
[385741755,1757999445405,-151.0,0.00022191,7]
[385741756,1757999445415,-480.0,0.00022191,3]
[385741757,1757999445426,-480.0,0.00022191,3]
[385741758,1757999445436,-558.53,0.00022191,3]
[385741759,1757999445445,-480.0,0.00022191,3]
[385741760,1757999445454,-166.45476434,0.00022191,3]
[385741761,1757999445464,-492.56,0.00022191,3]
[385741762,1757999445473,-480.0,0.00022191,3]
[385741763,1757999445483,-480.0,0.00022191,3]
[385741764,1757999445492,-480.0,0.00022191,3]
[385741765,1757999445501,-480.0,0.00022191,3]
[385741766,1757999445511,-480.0,0.00022191,3]
[385741767,1757999445519,-480.0,0.00022191,3]
[385741768,1757999445529,-480.0,0.00022191,3]
[385741769,1757999445538,-466.68839696,0.00022191,3]
[385741770,1757999445548,-480.0,0.00022191,3]
[385741771,1757999445557,-480.0,0.00022191,3]
[385741772,1757999445566,-480.0,0.00022191,3]
[385741773,1757999445576,-480.0,0.00022191,3]
[385741774,1757999445585,-480.0,0.00022191,3]
[385741775,1757999445595,-470.7558479,0.00022191,3]
[385741776,1757999445604,-480.0,0.00022191,3]
[385741777,1757999445614,-480.0,0.00022191,3]
[385741778,1757999445624,-491.68860742,0.00022191,3]
[385741779,1757999445633,-480.0,0.00022191,3]
[385741780,1757999445643,-480.0,0.00022191,3]
[385741781,1757999445652,-467.52998389,0.00022191,3]
[385741782,1757999445661,-480.0,0.00022191,3]
[385741783,1757999445671,-472.11650115,0.00022191,3]
[385741785,1757999445679,-487.83814807,0.00022191,3]
[385741787,1757999445688,-480.0,0.00022191,3]
[385741788,1757999445698,-480.0,0.00022191,3]
[385741790,1757999445707,-480.0,0.00022191,3]
[385741792,1757999445716,-521.26218663,0.00022191,3]
[385741794,1757999445726,-470.78824991,0.00022191,3]
[385741796,1757999445735,-480.0,0.00022191,3]
[385741797,1757999445744,-480.0,0.00022191,3]
[385741798,1757999445753,-480.0,0.00022191,3]
[385741799,1757999445762,-480.0,0.00022191,3]
[385741800,1757999445771,-480.0,0.00022191,3]
[385741802,1757999445781,-480.0,0.00022191,3]
[385741803,1757999445790,-472.75482603,0.00022191,3]
[385741805,1757999445799,-465.81639686,0.00022191,3]
[385741806,1757999445810,-466.57616418,0.00022191,3]
[385741808,1757999445819,-480.0,0.00022191,3]
[385741810,1757999445828,-480.0,0.00022191,3]
[385741811,1757999445837,-480.0,0.00022191,3]
[385741812,1757999445846,-480.0,0.00022191,3]
[385741813,1757999445855,-480.0,0.00022191,3]
[385741814,1757999445864,-151.0,0.00022191,7]
[385741815,1757999445874,-480.0,0.00022191,3]
[385741816,1757999445883,-480.0,0.00022191,3]
[385741817,1757999445892,-480.0,0.00022191,3]
[385741818,1757999445901,-558.43643192,0.00022191,3]
[385741819,1757999445910,-480.0,0.00022191,3]
[385741820,1757999445922,-427.5135894,0.00022191,3]
[385741821,1757999445931,-480.0,0.00022191,3]
[385741822,1757999445940,-151.0,0.00022191,7]
[385741823,1757999445949,-502.74,0.00022191,3]
[385741824,1757999445958,-151.0,0.00022191,7]
[385741825,1757999445967,-480.0,0.00022191,3]
[385741826,1757999445977,-480.0,0.00022191,3]
[385741827,1757999445986,-473.38984693,0.00022191,3]
[385741828,1757999445995,-480.0,0.00022191,3]
[385741829,1757999446005,-480.0,0.00022191,3]
[385741830,1757999446014,-480.0,0.00022191,3]
[385741831,1757999446024,-191.600975,0.00022191,7]
[385741832,1757999446033,-191.600975,0.00022191,7]
[385741833,1757999446043,-191.600975,0.00022191,7]
[385741834,1757999446052,-191.600975,0.00022191,7]
[385741835,1757999446061,-480.0,0.00022191,3]
[385741836,1757999446071,-480.0,0.00022191,3]
[385741837,1757999446080,-480.0,0.00022191,3]
[385741838,1757999446089,-480.0,0.00022191,3]
[385741839,1757999446099,-480.0,0.00022191,3]
[385741840,1757999446108,-480.0,0.00022191,3]
[385741841,1757999446119,-480.0,0.00022191,3]
[385741842,1757999446128,-480.0,0.00022191,3]
[385741843,1757999446137,-480.0,0.00022191,3]
[385741844,1757999446146,-480.0,0.00022191,3]
[385741845,1757999446155,-480.0,0.00022191,3]
[385741846,1757999446165,-480.0,0.00022191,3]
[385741847,1757999446174,-308.6745449,0.00022191,3]
[385741848,1757999446183,-472.13290087,0.00022191,3]
[385741849,1757999446193,-476.85677227,0.00022191,3]
[385741850,1757999446202,-474.39629858,0.00022191,3]
[385741851,1757999446211,-500.0,0.00022191,3]
[385741852,1757999446221,-480.0,0.00022191,3]
[385741853,1757999446230,-228.049257,0.00022191,7]
[385741854,1757999446239,-487.15,0.00022191,3]
[385741855,1757999446249,-151.0,0.00022191,7]
[385741856,1757999446258,-480.0,0.00022191,3]
[385741857,1757999446267,-480.0,0.00022191,3]
[385741858,1757999446276,-480.0,0.00022191,3]
[385741859,1757999446286,-529.77,0.00022191,3]
[385741860,1757999446296,-480.0,0.00022191,3]
[385741861,1757999446305,-467.76891415,0.00022191,3]
[385741863,1757999446314,-151.0,0.00022191,7]
[385741864,1757999446323,-481.80706522,0.00022191,3]
[385741865,1757999446332,-480.0,0.00022191,3]
[385741866,1757999446341,-480.0,0.00022191,3]
[385741867,1757999446350,-480.0,0.00022191,3]
[385741868,1757999446359,-480.0,0.00022191,3]
[385741869,1757999446368,-480.0,0.00022191,3]
[385741870,1757999446378,-480.0,0.00022191,3]
[385741871,1757999446387,-3859.97,0.00022191,3]
[385741872,1757999446396,-480.0,0.00022191,3]
[385741873,1757999446406,-334.15664772,0.00022191,3]
[385741874,1757999446416,-480.0,0.00022191,3]
[385741875,1757999446427,-480.0,0.00022191,3]
[385741876,1757999446436,-480.0,0.00022191,3]
[385741877,1757999446445,-564.74982413,0.00022191,3]
[385741878,1757999446454,-480.0,0.00022191,3]
[385741879,1757999446465,-455.08852253,0.00022191,3]
[385741880,1757999446475,-480.0,0.00022191,3]
[385741881,1757999446484,-469.26261065,0.00022191,3]
[385741882,1757999446493,-480.0,0.00022191,3]
[385741883,1757999446502,-480.0,0.00022191,3]
[385741884,1757999446511,-480.0,0.00022191,3]
[385741885,1757999446520,-1411.58,0.00022191,3]
[385741886,1757999446529,-480.0,0.00022191,3]
[385741887,1757999446538,-480.0,0.00022191,3]
[385741888,1757999446547,-151.0,0.00022191,7]
[385741889,1757999446556,-151.0,0.00022191,7]
[385741890,1757999446564,-480.0,0.00022191,3]
[385741891,1757999446574,-151.0,0.00022191,7]
[385741892,1757999446583,-480.0,0.00022191,3]
[385741893,1757999446593,-151.0,0.00022191,7]
[385741894,1757999446601,-480.0,0.00022191,3]
[385741895,1757999446610,-480.0,0.00022191,3]
[385741896,1757999446621,-480.0,0.00022191,3]
[385741897,1757999446630,-501.43586876,0.00022191,3]
[385741898,1757999446640,-480.0,0.00022191,3]
[385741899,1757999446649,-473.32096204,0.00022191,3]
[385741900,1757999446658,-160.0,0.00022191,3]
[385741901,1757999446669,-160.0,0.00022191,7]
[385741902,1757999446680,-480.0,0.00022191,3]
[385741903,1757999446689,-480.0,0.00022191,3]
[385741904,1757999446700,-480.0,0.00022191,3]
[385741905,1757999446709,-493.50875592,0.00022191,3]
[385741906,1757999446721,-151.0,0.00022191,7]
[385741907,1757999446734,-357.3174706,0.00022191,3]
[385741908,1757999446744,-496.06163564,0.00022191,3]
[385741909,1757999446753,-193.327189,0.00022191,7]
[385741910,1757999446762,-940.86,0.00022191,3]
[385741911,1757999446771,-480.0,0.00022191,3]
[385741912,1757999446780,-480.0,0.00022191,3]
[385741913,1757999446790,-485.70894745,0.00022191,3]
[385741914,1757999446800,-449.208965,0.00022191,7]
[385741915,1757999446810,-837.88,0.00022191,3]
[385741916,1757999446819,-480.0,0.00022191,3]
[385741917,1757999446829,-449.208965,0.00022191,7]
[385741918,1757999446838,-449.208965,0.00022191,7]
[385741919,1757999446848,-475.81677073,0.00022191,3]
[385741920,1757999446857,-480.0,0.00022191,3]
[385741921,1757999446866,-480.0,0.00022191,3]
[385741922,1757999446876,-449.208965,0.00022191,7]
[385741923,1757999446885,-1002.05338767,0.00022363,2]
[385741924,1757999446895,-501.52175241,0.00022363,2]
[385741925,1757999446904,-565.83892727,0.00022443,2]
[385741926,1757999446914,-481.37075762,0.00022465,3]
[385741927,1757999446923,-162.25740872,0.00022465,3]
[385741928,1757999446933,-480.0,0.00022465,3]
[385741929,1757999446943,-480.0,0.00022465,3]
[385741930,1757999446953,-480.0,0.00022465,3]
[385741931,1757999446963,-480.0,0.00022465,3]
[385741932,1757999446972,-480.0,0.00022465,3]
[385741933,1757999446981,-480.0,0.00022465,3]
[385741934,1757999446990,-480.0,0.00022465,3]
[385741935,1757999446999,-468.05828872,0.00022465,3]
[385741936,1757999447009,-433.34661456,0.00022465,3]
[385741937,1757999447018,-480.0,0.00022465,3]
[385741938,1757999447027,-155.420887,0.00022465,7]
[385741939,1757999447036,-599.49096495,0.00022465,3]
[385741940,1757999447046,-480.0,0.00022465,3]
[385741941,1757999447055,-151.0,0.00022465,7]
[385741942,1757999447064,-480.0,0.00022465,3]
[385741943,1757999447074,-480.0,0.00022465,3]
[385741944,1757999447083,-480.0,0.00022465,3]
[385741945,1757999447092,-480.0,0.00022465,3]
[385741946,1757999447102,-480.0,0.00022465,3]
[385741947,1757999447112,-480.0,0.00022465,3]
[385741948,1757999447122,-480.0,0.00022465,3]
[385741949,1757999447132,-480.0,0.00022465,3]
[385741950,1757999447141,-468.24552515,0.00022465,3]
[385741951,1757999447151,-480.0,0.00022465,3]
[385741952,1757999447161,-480.0,0.00022465,3]
[385741953,1757999447249,-480.0,0.00022465,3]
[385741954,1757999447259,-480.0,0.00022465,3]
[385741955,1757999447269,-480.0,0.00022465,3]
[385741956,1757999447278,-480.0,0.00022465,3]
[385741957,1757999447287,-536.21158563,0.00022465,3]
[385741958,1757999447296,-472.93322358,0.00022465,3]
[385741959,1757999447305,-480.0,0.00022465,3]
[385741960,1757999447314,-209.24715129,0.00022465,3]